[Event "MPL 19th IND-ch Teams Women 2022"]
[Site "Jalgaon"]
[Date "2022.04.08"]
[Round "1.1"]
[White "Divya Deshmukh"]
[Black "Dakshita Kumawat"]
[Result "1-0"]
[ECO "C02"]
[WhiteElo "2301"]
[BlackElo "1395"]
[Annotator "RC"]
[PlyCount "39"]
[EventDate "2022.04.10"]
[EventType "team-tourn"]
[EventCountry "IND"]
[SourceTitle "playchess.com"]
[Source "ChessBase"]
[SourceQuality "1"]
[TimeControl "5400+30"]

{[%evp 0,39,14,19,41,22,36,18,11,3,-6,11,16,1,-7,-37,-25,-54,-45,-130,-97,-79,-86,-91,-26,-55,-63,-56,-56,-101,-79,-64,-32,-74,-22,-64,0,11,11,11,238,131]} 1. e4 e6 2. d4 d5 3. e5 c5 4. c3 Nc6 5. Nf3 Qb6 6. Bd3 cxd4 7. O-O Bd7 8. Re1 Rc8 9. h4 a6 10. Nbd2 dxc3 11. bxc3 Na5 12. Rb1 Qc7 13. Bb2 Ne7 14. Nf1 Nec6 15. Ng3 Be7 16. Bc1 Qd8 17. Ng5 h6 18. Qh5 O-O 19. Nh7 Bxh4 20. Bxh6 1-0

[Event "MPL 19th IND-ch Teams Women 2022"]
[Site "Jalgaon"]
[Date "2022.04.08"]
[Round "1.2"]
[White "Charvi Patidar"]
[Black "Priyanka Nutakki"]
[Result "0-1"]
[ECO "D24"]
[WhiteElo "1367"]
[BlackElo "2301"]
[Annotator "RC"]
[PlyCount "62"]
[EventDate "2022.04.10"]
[EventType "team-tourn"]
[EventCountry "IND"]
[SourceTitle "playchess.com"]
[Source "ChessBase"]
[SourceQuality "1"]
[TimeControl "5400+30"]

1. d4 d5 2. c4 e6 3. Nc3 Nf6 4. Nf3 dxc4 5. a4 Bb4 6. e3 O-O 7. Bxc4 c5 8. O-O Nc6 9. Ne2 Qe7 10. Qc2 e5 11. dxe5 Nxe5 12. Nxe5 Qxe5 13. Nf4 Bf5 14. Bd3 Bd7 15. Rd1 Bc6 16. Rb1 Rad8 17. b3 Qg5 18. Qe2 Rfe8 19. f3 a6 20. e4 Qe5 21. Be3 Bc3 22. g4 Bd4 23. Ng2 h6 24. Kh1 Bxe3 25. Qxe3 Rd4 26. Rd2 Qd6 27. Nf4 Rd8 28. Rbd1 Qe5 29. Ne2 R4d7 30. Bc4 Nxg4 31. fxg4 Rxd2 0-1

[Event "MPL 19th IND-ch Teams Women 2022"]
[Site "Jalgaon"]
[Date "2022.04.08"]
[Round "1.3"]
[White "Vaishali R"]
[Black "Aanya Chawat"]
[Result "1-0"]
[ECO "C90"]
[WhiteElo "2403"]
[BlackElo "1159"]
[Annotator "TA"]
[PlyCount "79"]
[EventDate "2022.04.10"]
[EventType "team-tourn"]
[EventCountry "IND"]
[SourceTitle "playchess.com"]
[Source "ChessBase"]
[SourceQuality "1"]
[TimeControl "5400+30"]

{[%evp 17,79,41,49,0,0,0,0,0,0,-3,0,-15,-28,-15,0,0,7,0,5,0,0,0,0,0,0,0,0,-49,-37,-41,-31,-77,72,10,71,72,90,88,66,75,119,90,843,486,1369,1339,1254,573,527,551,533,521,29969,29967,29970,29972,29969,29953,9503,29956,6211,5912,2179,1768]} 1. e4 e5 2. Nf3 Nc6 3. Bb5 a6 4. Ba4 Nf6 5. O-O Be7 6. Re1 b5 7. Bb3 d6 8. c3 Bg4 9. h3 Bh5 10. d4 {C90: Closed Ruy Lopez with 7...d6: Early deviations.} (10. d3 $14) 10... Bxf3 $11 11. gxf3 Na5 12. f4 {The position is equal.} Nxb3 13. axb3 {[#]} O-O $146 ({Predecessor:} 13... exd4 14. cxd4 O-O 15. d5 Qd7 16. Qf3 c6 17. dxc6 Qxc6 18. Nd2 Nd7 19. Qg3 Rfe8 {½-½ (43) Filatov,B (2495)-Todorovic,B (2282) Rotterdam 1996}) 14. Kh2 Nd7 15. f5 c6 16. Rg1 Kh8 17. Be3 Qc7 18. dxe5 dxe5 19. Nd2 Bc5 20. Qg4 {[%csl Gg1][%cal Rg4g7]} Rg8 21. Bxc5 $40 {[%mdl 128] Black needs to defend precisely.} Nxc5 22. Nf3 (22. f6 $11 {feels stronger.} gxf6 23. Qf3) 22... f6 $15 23. b4 Nd3 {[%csl LRb2,LRf2]} 24. Nh4 (24. Qg3 $1 $15 {was preferrable.}) 24... h6 (24... Nxb2 $2 {is a self mate.} 25. Ng6+ $1 {[%mdl 512]} hxg6 26. Qh4#) (24... Rgd8 $17 {stays on course. ...Qa7 is the strong threat.} 25. Qe2 Qa7) 25. Ng6+ $16 Kh7 {[#]} 26. Qe2 $1 ({Reject} 26. Nh4 Nxb2 27. Qg6+ Kh8 $15) 26... Nf4 27. Nxf4 exf4 28. Qf3 {&Bianco is more active.} Rgd8 {[#]} 29. Rg6 $1 ({Much worse is} 29. Qh5 $6 Rd2 $11) 29... c5 $2 {[%mdl 8192] Black cannot hold the game after this.} (29... Ra7 $16) 30. Rag1 {[%cal Oe4e5] And now e5! would win.} Rd7 (30... Rg8 $142 31. bxc5 Qxc5 32. Qxf4 Qe7) 31. e5 $18 Rf8 32. exf6 (32. Qh5 $142 {[%cal Og6h6] White wants to mate with Rxh6+!} Rg8 33. exf6) 32... Rxf6 33. Rxf6 gxf6 {[%mdl 4096] Endgame KQR-KQR} 34. Qg4 {[%csl Gg1][%cal Rg4g8]} Rg7 {Against Qg8+} 35. Qxg7+ Qxg7 36. Rxg7+ Kxg7 37. bxc5 Kf7 38. Kg2 Ke7 39. Kf3 Kd7 40. b4 {Weighted Error Value: White=0.35/Black=0.47} 1-0

[Event "MPL 19th IND-ch Teams Women 2022"]
[Site "Jalgaon"]
[Date "2022.04.08"]
[Round "1.4"]
[White "Tejasvee Naresh Singh"]
[Black "Priyanka, Kumari"]
[Result "0-1"]
[ECO "B96"]
[WhiteElo "1250"]
[BlackElo "1910"]
[Annotator "RC"]
[PlyCount "56"]
[EventDate "2022.04.10"]
[EventType "team-tourn"]
[EventCountry "IND"]
[SourceTitle "playchess.com"]
[Source "ChessBase"]
[SourceQuality "1"]
[TimeControl "5400+30"]

1. e4 c5 2. Nf3 d6 3. d4 cxd4 4. Nxd4 Nf6 5. Nc3 a6 6. Bg5 e6 7. f4 Qc7 8. Qf3 b5 9. Bd3 Bb7 10. O-O-O b4 11. Nce2 Nbd7 12. g4 Be7 13. Bxf6 gxf6 14. Ng3 Nc5 15. h4 h6 16. Kb1 Rg8 17. Rhf1 O-O-O 18. Qe2 Kb8 19. Rg1 d5 20. Rgf1 dxe4 21. Bxe4 Nxe4 22. Nxe4 Bd5 23. Ng3 Bc4 24. Qf3 Rd5 25. Nde2 Rgd8 26. Qh1 Bxa2+ 27. Kc1 Bb3 28. Qe4 Qa5 0-1

[Event "MPL 19th IND-ch Teams Women 2022"]
[Site "Jalgaon"]
[Date "2022.04.08"]
[Round "1.5"]
[White "Anishka Pandey"]
[Black "Soumya, Swaminathan"]
[Result "1-0"]
[ECO "A48"]
[WhiteElo "1160"]
[BlackElo "2360"]
[Annotator "RC"]
[PlyCount "172"]
[EventDate "2022.04.10"]
[EventType "team-tourn"]
[EventCountry "IND"]
[SourceTitle "playchess.com"]
[Source "ChessBase"]
[SourceQuality "1"]
[TimeControl "5400+30"]

1. d4 Nf6 2. Bf4 g6 3. e3 Bg7 4. Nf3 c5 5. Nbd2 b6 6. c3 Bb7 7. Bc4 O-O 8. O-O d6 9. Re1 Nbd7 10. Nf1 Qc7 11. Qb3 h6 12. N1d2 a6 13. a4 Nh5 14. Bg3 Nxg3 15. hxg3 Nf6 16. e4 e5 17. dxe5 dxe5 18. Nh4 Kh7 19. Rad1 Rad8 20. Qc2 Qc6 21. Nhf3 Qe8 22. Qb3 Rd6 23. Bf1 Qb8 24. Bc4 Qe8 25. Bf1 Qe6 26. Bc4 Qe7 27. Bf1 Rfd8 28. Bc4 Kg8 29. Nxe5 Qxe5 30. Bxf7+ Kh7 31. Nf3 Qh5 32. Rxd6 Rxd6 33. e5 Ng4 34. Bg8+ Kh8 35. Nh4 Nxe5 36. f4 c4 37. Bxc4 Nxc4 38. Qxc4 Qc5+ 39. Qxc5 bxc5 40. Re8+ Kh7 41. Re7 Rb6 42. f5 g5 43. Ng6 Kg8 44. Re8+ Kf7 45. Re7+ Kf6 46. g4 Bf8 47. Re8 Bg7 48. Re7 Bd5 49. Re5 Bf7 50. Rxc5 Bxg6 51. fxg6 Kxg6 52. b4 Bf8 53. Rf5 Bd6 54. b5 axb5 55. axb5 h5 56. Rd5 hxg4 57. c4 Bg3 58. Rc5 Re6 59. Rc6 Rxc6 60. bxc6 Kf5 61. c5 Bc7 62. Kh1 Ke4 63. Kg1 Ke3 64. Kf1 Kd2 65. Kf2 Kd3 66. Ke1 Ke3 67. Kf1 Bh2 68. Ke1 Bg3+ 69. Kf1 Kd2 70. Kg1 Ke2 71. c7 Bxc7 72. c6 Bb6+ 73. Kh2 Kf2 74. Kh1 Kg3 75. c7 Bxc7 76. Kg1 Bb6+ 77. Kh1 Kf2 78. Kh2 Be3 79. Kh1 Kf1 80. Kh2 Bf2 81. Kh1 Bg1 82. g3 Bf2 83. Kh2 Ke2 84. Kg2 Ke3 85. Kh2 Kf3 86. Kh1 Bxg3 1-0

[Event "MPL 19th IND-ch Teams Women 2022"]
[Site "Jalgaon"]
[Date "2022.04.08"]
[Round "1.6"]
[White "Gomes, Mary Ann"]
[Black "Adyasha, Pattnaik"]
[Result "1-0"]
[ECO "A06"]
[WhiteElo "2361"]
[BlackElo "1526"]
[Annotator "TA"]
[PlyCount "53"]
[EventDate "2022.04.10"]
[EventType "team-tourn"]
[EventCountry "IND"]
[SourceTitle "playchess.com"]
[Source "ChessBase"]
[SourceQuality "1"]
[TimeControl "5400+30"]

{[%evp 15,53,7,6,8,19,6,54,48,66,71,76,37,61,53,92,92,98,89,83,85,188,175,169,170,337,363,640,617,758,733,719,711,879,799,831,795,765,765,675,597]} 1. Nf3 d5 2. g3 Nf6 3. Bg2 g6 4. b3 Bg7 5. Bb2 c6 6. O-O O-O 7. d3 Nbd7 8. Nbd2 Re8 9. a4 {A07: Réti Opening: New York and Capablanca Systems.} Qc7 {[#]} 10. a5 $146 ({Predecessor:} 10. Re1 e5 11. e4 dxe4 12. dxe4 b5 13. a5 a6 14. b4 Bb7 15. c4 c5 16. cxb5 axb5 17. Qb3 c4 18. Rac1 Rac8 19. Qa3 Qd6 20. Red1 Qe7 {½-½ (57) Gravett,A (1975)-Westerkamp,B (2085) Cobo Bay 2005}) 10... b6 (10... e5 $11 {was preferrable.}) 11. axb6 $14 {White is slightly better.} Nxb6 12. Be5 Qd8 13. e4 Bg4 {[%cal Of6e4]} 14. exd5 Bxf3 15. Nxf3 cxd5 16. Re1 e6 17. c4 {&Bianco is more active.} Nfd7 (17... Nbd7 $16) 18. Bxg7 $18 Kxg7 19. Ra5 Nxc4 $2 {[#]} (19... Rc8 {might work better.} 20. Qd2 (20. Rxa7 Qf6 $16) 20... Re7 21. Rxa7 Nf6) 20. Qa1+ Nf6 $2 (20... Nce5 21. Nxe5 Nxe5 22. Rxe5 Kg8 23. Rxa7 Rxa7 24. Qxa7 Qa8 25. Qxa8 Rxa8) 21. bxc4 {White is clearly winning.} dxc4 22. dxc4 Rc8 23. Ne5 h5 24. Rd1 Qe7 25. Rxa7 Rc7 26. Rxc7 Qxc7 27. Nd7 {Weighted Error Value: White=0.05 (flawless) /Black=0.55} 1-0

[Event "MPL 19th IND-ch Teams Women 2022"]
[Site "Jalgaon"]
[Date "2022.04.08"]
[Round "1.7"]
[White "Aparajita, Gochhikar"]
[Black "Karavade, Eesha"]
[Result "0-1"]
[ECO "B22"]
[WhiteElo "1739"]
[BlackElo "2345"]
[Annotator "RC"]
[PlyCount "62"]
[EventDate "2022.04.10"]
[EventType "team-tourn"]
[EventCountry "IND"]
[SourceTitle "playchess.com"]
[Source "ChessBase"]
[SourceQuality "1"]
[TimeControl "5400+30"]

{[%evp 0,62,21,19,45,3,13,21,21,29,21,14,47,18,13,14,11,6,3,-21,-21,-21,-18,-16,-19,-73,-81,-143,-135,-232,-303,-300,-301,-319,-229,-254,-232,-226,-226,-284,-275,-275,-239,-273,-265,-278,-224,-207,-188,-188,-175,-247,-226,-225,-223,-215,-211,-223,-242,-302,-295,-296,-299,-296,-295]} 1. e4 c5 2. c3 Nf6 3. e5 Nd5 4. d4 cxd4 5. Nf3 d6 6. cxd4 Nc6 7. Bc4 Nb6 8. Bb3 dxe5 9. dxe5 Qxd1+ 10. Bxd1 Bf5 11. Nc3 e6 12. Be3 Nc4 13. Nb5 Bb4+ 14. Nc3 Nxb2 15. Bd2 Nd3+ 16. Ke2 Ndxe5 17. Nxe5 Nxe5 18. Ba4+ Kf8 19. a3 Bd3+ 20. Ke1 Bc5 21. Rd1 Ba6 22. Bb5 Bxb5 23. Nxb5 Rd8 24. Ke2 Ke7 25. Bb4 Bxb4 26. axb4 a6 27. Nd4 Rd7 28. f4 Rhd8 29. Nb3 Rxd1 30. Rxd1 Rxd1 31. Kxd1 Nd3 0-1

[Event "MPL 19th IND-ch Teams Women 2022"]
[Site "Jalgaon"]
[Date "2022.04.08"]
[Round "1.8"]
[White "Mohota, Nisha"]
[Black "Chatterjee Anantyoya"]
[Result "1-0"]
[ECO "A49"]
[WhiteElo "2147"]
[BlackElo "1148"]
[Annotator "RC"]
[PlyCount "83"]
[EventDate "2022.04.10"]
[EventType "team-tourn"]
[EventCountry "IND"]
[SourceTitle "playchess.com"]
[Source "ChessBase"]
[SourceQuality "1"]
[TimeControl "5400+30"]

1. d4 d6 2. Nf3 Nf6 3. g3 g6 4. b3 Bg7 5. Bb2 O-O 6. Bg2 c6 7. O-O Qc7 8. Nbd2 Nbd7 9. e4 e5 10. Re1 Re8 11. dxe5 Nxe5 12. Nxe5 dxe5 13. Nc4 Rd8 14. Qe2 Ne8 15. Bc3 b6 16. Bf1 Qe7 17. Rad1 Bb7 18. Qe3 Rac8 19. Bh3 Rxd1 20. Rxd1 Rc7 21. Qd2 c5 22. f3 Kf8 23. a4 Bc8 24. Bxc8 Rxc8 25. Qd7 Qxd7 26. Rxd7 Rc7 27. Rxc7 Nxc7 28. Bxe5 Bxe5 29. Nxe5 Ke8 30. Kf2 a6 31. Ke3 f6 32. Nd3 Kd7 33. a5 Kc6 34. axb6 Kxb6 35. Nf4 Kc6 36. h4 Kd6 37. c4 Ne6 38. Nxe6 Kxe6 39. f4 a5 40. Kd3 h6 41. Kc3 g5 42. Kb2 1-0

[Event "MPL 19th IND-ch Teams Women 2022"]
[Site "Jalgaon"]
[Date "2022.04.09"]
[Round "2.1"]
[White "Bhagyashree Patil"]
[Black "Arpita, Mukherjee"]
[Result "1/2-1/2"]
[ECO "B92"]
[WhiteElo "1974"]
[BlackElo "2260"]
[Annotator "RC"]
[PlyCount "117"]
[EventDate "2022.04.10"]
[EventType "team-tourn"]
[EventCountry "IND"]
[SourceTitle "playchess.com"]
[Source "ChessBase"]
[SourceQuality "1"]
[TimeControl "5400+30"]

1. e4 c5 2. Nf3 d6 3. d4 cxd4 4. Nxd4 Nf6 5. Nc3 a6 6. Be2 e5 7. Nf3 Be7 8. O-O O-O 9. a4 Nc6 10. b3 h6 11. Nd2 Be6 12. Nc4 Nd4 13. Ne3 Rc8 14. Bb2 Re8 15. Bd3 Qa5 16. Ne2 Nxe2+ 17. Qxe2 Bf8 18. Rfd1 Qc7 19. Rd2 Qc6 20. f3 d5 21. exd5 Nxd5 22. Nxd5 Bxd5 23. c4 Qb6+ 24. Kh1 Bc6 25. Bc2 a5 26. Bc3 Bb4 27. Bxb4 Qxb4 28. Rad1 Qe7 29. Be4 Qh4 30. Rd6 Rcd8 31. h3 Rxd6 32. Rxd6 Qf4 33. Bxc6 bxc6 34. Qe4 Qxe4 35. fxe4 Rc8 36. Kg1 Kf8 37. Kf2 Ke7 38. c5 g6 39. g4 Rb8 40. Rd3 h5 41. g5 h4 42. Kf3 Rb4 43. Re3 f6 44. gxf6+ Kxf6 45. Kg4 Rd4 46. Kxh4 Rd2 47. Kg4 Rg2+ 48. Kf3 Rc2 49. h4 Rxc5 50. Rd3 Ke6 51. Ke2 Rc2+ 52. Rd2 Rc1 53. Rd1 Rc5 54. Rd3 Rc1 55. Rd1 Rc2+ 56. Rd2 Rc3 57. Rd3 Rc2+ 58. Rd2 Rc5 59. Rd3 1/2-1/2

[Event "MPL 19th IND-ch Teams Women 2022"]
[Site "Jalgaon"]
[Date "2022.04.09"]
[Round "2.2"]
[White "Divya Deshmukh"]
[Black "Chitlange Sakshi"]
[Result "1/2-1/2"]
[ECO "D38"]
[WhiteElo "2301"]
[BlackElo "2205"]
[Annotator "RC"]
[PlyCount "132"]
[EventDate "2022.04.10"]
[EventType "team-tourn"]
[EventCountry "IND"]
[SourceTitle "playchess.com"]
[Source "ChessBase"]
[SourceQuality "1"]
[TimeControl "5400+30"]

1. d4 {[%emt 0:00:05]} Nf6 {[%emt 0:00:33]} 2. Nf3 d5 {[%emt 0:00:15]} 3. c4 e6 {[%emt 0:00:14]} 4. Nc3 {[%emt 0:00:58]} Bb4 {[%emt 0:00:36]} 5. Qa4+ {[%emt 0:01:17]} Nc6 {[%emt 0:00:06]} 6. Bg5 {[%emt 0:09:33]} h6 {[%emt 0:02:04]} 7. Bxf6 {[%emt 0:00:09]} Qxf6 {[%emt 0:00:11]} 8. e3 {[%emt 0:00:14]} O-O {[%emt 0:04:49]} 9. Rc1 {[%emt 0:00:23]} Qg6 {[%emt 0:03:53]} 10. Qc2 {[%emt 0:02:14]} Bxc3+ {[%emt 0:04:30]} 11. Qxc3 {[%emt 0:07:42]} Rd8 {[%emt 0:11:07]} 12. c5 {[%emt 0:09:50]} Re8 {[%emt 0:16:22]} 13. b4 {[%emt 0:10:44]} a6 {[%emt 0:00:56]} 14. a4 {[%emt 0:16:08]} e5 {[%emt 0:09:33]} 15. Nxe5 {[%emt 0:08:13]} Nxe5 {[%emt 0:02:24]} 16. dxe5 {[%emt 0:00:03]} Bd7 {[%emt 0:07:38]} 17. a5 {[%emt 0:03:33]} Qe6 {[%emt 0:04:23]} 18. f4 {[%emt 0:02:19]} f6 {[%emt 0:00:07]} 19. Bd3 {[%emt 0:02:33]} fxe5 {[%emt 0:01:11]} 20. O-O {[%emt 0:00:48]} exf4 {[%emt 0:15:36]} 21. exf4 {[%emt 0:00:24]} Qe3+ {[%emt 0:01:35]} 22. Kh1 {[%emt 0:00:12]} d4 {[%emt 0:01:00]} 23. Qc2 {[%emt 0:06:54]} Bc6 {[%emt 0:01:50]} 24. f5 {[%emt 0:00:58]} Kh8 {[%emt 0:02:10]} 25. Rcd1 {[%emt 0:01:45]} Qg5 {[%emt 0:03:43]} 26. Rde1 {[%emt 0:04:30]} Re3 {[%emt 0:03:04]} 27. Re2 {[%emt 0:08:25]} Rae8 {[%emt 0:01:00]} 28. Ref2 Qf6 {[%emt 0:01:23]} 29. Kg1 {[%emt 0:01:06]} Bd5 {[%emt 0:01:13]} 30. Qd2 {[%emt 0:02:25]} c6 {[%emt 0:00:24]} 31. Be2 {[%emt 0:00:27]} Qe7 {[%emt 0:00:44]} 32. Bh5 {[%emt 0:00:20]} Rf8 {[%emt 0:00:14]} 33. Bg4 {[%emt 0:01:53]} d3 {[%emt 0:00:40]} 34. h3 {[%emt 0:00:33]} Bc4 {[%emt 0:00:55]} 35. Rf4 {[%emt 0:00:38]} Bb5 {[%emt 0:00:24]} 36. Kh1 {[%emt 0:00:23]} Rf6 {[%emt 0:00:18]} 37. Bd1 {[%emt 0:00:33]} Re4 {[%emt 0:00:55]} 38. Rxe4 {[%emt 0:00:26]} Qxe4 {[%emt 0:00:00]} 39. Bg4 {[%emt 0:00:22]} Qd4 {[%emt 0:00:27]} 40. Re1 {[%emt 0:00:20]} Qd8 {[%emt 0:00:27]} 41. Bh5 {[%emt 0:00:32]} Rf8 {[%emt 0:00:09]} 42. Bg6 {[%emt 0:00:48]} Qh4 {[%emt 0:00:21]} 43. Kh2 {[%emt 0:00:41]} Qg5 {[%emt 0:00:48]} 44. Rd1 {[%emt 0:00:34]} Qxd2 {[%emt 0:00:21]} 45. Rxd2 {[%emt 0:00:01]} Rd8 {[%emt 0:00:14]} 46. Bh5 {[%emt 0:01:00]} Rd4 {[%emt 0:00:42]} 47. Rb2 {[%emt 0:00:21]} Ba4 {[%emt 0:01:08]} 48. Rd2 {[%emt 0:00:16]} Kg8 {[%emt 0:00:29]} 49. Kg3 {[%emt 0:00:23]} Bc2 {[%emt 0:00:25]} 50. Bd1 {[%emt 0:00:38]} Bxd1 {[%emt 0:00:58]} 51. Rxd1 {[%emt 0:00:01]} Kf7 {[%emt 0:00:24]} 52. Kf3 {[%emt 0:00:44]} Kf6 {[%emt 0:00:16]} 53. g4 {[%emt 0:00:48]} d2 {[%emt 0:00:29]} 54. Ke3 {[%emt 0:00:05]} Rxb4 {[%emt 0:00:06]} 55. Rxd2 {[%emt 0:00:03]} Rb5 {[%emt 0:00:33]} 56. Rd6+ Ke7 {[%emt 0:00:21]} 57. Rg6 {[%emt 0:01:54]} Kf7 {[%emt 0:00:08]} 58. Rd6 {[%emt 0:00:03]} Rxc5 {[%emt 0:00:47]} 59. Rd7+ {[%emt 0:00:00]} Kf6 {[%emt 0:00:12]} 60. Rxb7 {[%emt 0:00:07]} Rxa5 {[%emt 0:00:18]} 61. Rb6 {[%emt 0:01:20]} Ra3+ {[%emt 0:01:48]} 62. Kd4 {[%emt 0:01:04]} Rxh3 {[%emt 0:00:37]} 63. Rxc6+ {[%emt 0:00:07]} Kf7 {[%emt 0:00:03]} 64. Rxa6 {[%emt 0:00:16]} Rh4 {[%emt 0:00:36]} 65. Rg6 {[%emt 0:00:40]} h5 {[%emt 0:00:14]} 66. Ke5 {[%emt 0:00:09]} Rxg4 {[%emt 0:00:39]} 1/2-1/2

[Event "MPL 19th IND-ch Teams Women 2022"]
[Site "Jalgaon"]
[Date "2022.04.09"]
[Round "2.3"]
[White "Parnali, S Dharia"]
[Black "Priyanka Nutakki"]
[Result "1/2-1/2"]
[ECO "C18"]
[WhiteElo "2224"]
[BlackElo "2301"]
[Annotator "RC"]
[PlyCount "98"]
[EventDate "2022.04.10"]
[EventType "team-tourn"]
[EventCountry "IND"]
[SourceTitle "playchess.com"]
[Source "ChessBase"]
[SourceQuality "1"]
[TimeControl "5400+30"]

1. e4 {[%emt 0:00:07]} e6 {[%emt 0:00:51]} 2. d4 {[%emt 0:00:05]} d5 {[%emt 0:00:03]} 3. Nc3 {[%emt 0:00:05]} Bb4 {[%emt 0:00:26]} 4. e5 {[%emt 0:00:13]} c5 {[%emt 0:00:04]} 5. a3 {[%emt 0:00:07]} Bxc3+ {[%emt 0:00:05]} 6. bxc3 {[%emt 0:00:09]} Ne7 {[%emt 0:00:20]} 7. Qg4 {[%emt 0:00:14]} Qc7 {[%emt 0:00:21]} 8. Bd3 {[%emt 0:00:28]} cxd4 {[%emt 0:01:36]} 9. Ne2 {[%emt 0:00:17]} dxc3 {[%emt 0:00:12]} 10. Qxg7 {[%emt 0:01:00]} Rg8 {[%emt 0:00:05]} 11. Qxh7 {[%emt 0:00:30]} Qxe5 {[%emt 0:01:18]} 12. h4 {[%emt 0:01:38]} Nd7 {[%emt 0:02:56]} 13. Bf4 {[%emt 0:04:21]} Qf6 {[%emt 0:00:14]} 14. Bg5 {[%emt 0:01:06]} Qh8 {[%emt 0:00:19]} 15. Qxh8 {[%emt 0:01:40]} Rxh8 {[%emt 0:00:01]} 16. Bb5 {[%emt 0:01:58]} Nc6 {[%emt 0:02:15]} 17. Nxc3 {[%emt 0:01:20]} f6 {[%emt 0:00:43]} 18. Be3 {[%emt 0:14:38]} Kf7 {[%emt 0:08:14]} 19. O-O-O {[%emt 0:00:25]} Nde5 {[%emt 0:03:29]} 20. Be2 {[%emt 0:00:35]} Na5 {[%emt 0:01:54]} 21. Bc5 {[%emt 0:13:26]} Nec4 {[%emt 0:06:42]} 22. Bb4 {[%emt 0:03:40]} b6 {[%emt 0:04:26]} 23. h5 {[%emt 0:01:11]} Rh6 {[%emt 0:04:10]} 24. Rh4 {[%emt 0:03:24]} Ba6 {[%emt 0:04:13]} 25. Bd3 {[%emt 0:08:15]} Rc8 {[%emt 0:10:08]} 26. Re1 {[%emt 0:09:51]} f5 {[%emt 0:08:29]} 27. Nxd5 {[%emt 0:07:07]} Nb3+ {[%emt 0:06:54]} 28. Kb1 {[%emt 0:08:39]} Ncd2+ {[%emt 0:05:39]} 29. Kb2 {[%emt 0:01:08]} Bxd3 {[%emt 0:00:21]} 30. cxd3 {[%emt 0:00:02]} exd5 {[%emt 0:00:54]} 31. Re2 Rg8 {[%emt 0:13:34]} 32. Bxd2 {[%emt 0:07:37]} Nxd2 {[%emt 0:00:06]} 33. Rxd2 {[%emt 0:01:05]} Rxg2 {[%emt 0:00:02]} 34. Rc2 {[%emt 0:00:27]} Kf6 {[%emt 0:01:27]} 35. Rd4 {[%emt 0:01:41]} Rxh5 {[%emt 0:02:00]} 36. Rxd5 {[%emt 0:00:03]} Rhh2 {[%emt 0:00:13]} 37. Rd7 {[%emt 0:00:57]} Rxf2 {[%emt 0:01:39]} 38. Rxf2 {[%emt 0:00:17]} Rxf2+ {[%emt 0:00:02]} 39. Kc3 {[%emt 0:00:01]} Ke6 {[%emt 0:01:38]} 40. Rxa7 {[%emt 0:00:13]} Kd5 {[%emt 0:00:10]} 41. Rb7 {[%emt 0:01:05]} Kc6 {[%emt 0:00:11]} 42. Rf7 {[%emt 0:00:20]} Kc5 {[%emt 0:01:41]} 43. a4 {[%emt 0:01:03]} Rf1 {[%emt 0:02:49]} 44. Rf6 {[%emt 0:00:38]} Rf3 {[%emt 0:01:36]} 45. Rf7 {[%emt 0:00:32]} Kc6 {[%emt 0:01:21]} 46. Kc4 {[%emt 0:01:15]} Rf1 {[%emt 0:00:19]} 47. Rf6+ {[%emt 0:00:40]} Kb7 {[%emt 0:00:35]} 48. Kb5 {[%emt 0:01:00]} Rb1+ {[%emt 0:00:08]} 49. Kc4 {[%emt 0:00:11]} Rf1 {[%emt 0:00:04]} 1/2-1/2